[Event "Live Chess"]
[Site "Chess.com"]
[Date "2024.06.01"]
[Round "-"]
[White "Silverback7829"]
[Black "StoreySniper"]
[Result "0-1"]
[WhiteElo "1114"]
[BlackElo "2532"]
[TimeControl "300"]
[EndTime "12:39:13 PDT"]
[Termination "StoreySniper won by checkmate"]

1. d4 {[%clk 0:04:56.6]} 1... g6 {[%clk 0:04:59.6]} 2. Nf3 {[%clk 0:04:55]} 2...
Bg7 {[%clk 0:04:59.1]} 3. Nc3 {[%clk 0:04:52.8]} 3... c5 {[%clk 0:04:58.6]} 4.
dxc5 {[%clk 0:04:49.1]} 4... Bxc3+ {[%clk 0:04:53.9]} 5. Bd2 {[%clk 0:04:43.8]}
5... Bxd2+ {[%clk 0:04:52.2]} 6. Qxd2 {[%clk 0:04:41.5]} 6... Nf6 {[%clk
0:04:51.9]} 7. e3 {[%clk 0:04:38]} 7... Qc7 {[%clk 0:04:48.7]} 8. b4 {[%clk
0:04:33]} 8... b6 {[%clk 0:04:46.5]} 9. Bc4 {[%clk 0:04:28]} 9... bxc5 {[%clk
0:04:43.3]} 10. Qc3 {[%clk 0:04:22.1]} 10... cxb4 {[%clk 0:04:35.9]} 11. Qxb4
{[%clk 0:04:18.3]} 11... Nc6 {[%clk 0:04:32.4]} 12. Qc3 {[%clk 0:04:14.4]} 12...
O-O {[%clk 0:04:28.4]} 13. O-O {[%clk 0:04:12.5]} 13... d5 {[%clk 0:04:19.9]}
14. Bb5 {[%clk 0:04:06.3]} 14... Bd7 {[%clk 0:04:17.8]} 15. Bxc6 {[%clk
0:04:03.4]} 15... Qxc6 {[%clk 0:04:16.5]} 16. Qd2 {[%clk 0:03:57.2]} 16... Ne4
{[%clk 0:04:14.4]} 17. Qd4 {[%clk 0:03:44.8]} 17... Qc4 {[%clk 0:04:00]} 18.
Qxc4 {[%clk 0:03:39.8]} 18... dxc4 {[%clk 0:03:58.8]} 19. Nd4 {[%clk 0:03:36.3]}
19... e5 {[%clk 0:03:57.1]} 20. Ne2 {[%clk 0:03:29.7]} 20... c3 {[%clk
0:03:54.6]} 21. Rab1 {[%clk 0:03:26.1]} 21... Rab8 {[%clk 0:03:53.1]} 22. Rxb8
{[%clk 0:03:22.7]} 22... Rxb8 {[%clk 0:03:51.3]} 23. f3 {[%clk 0:03:18.4]} 23...
Bb5 {[%clk 0:03:50.3]} 24. Re1 {[%clk 0:03:08.8]} 24... Bxe2 {[%clk 0:03:48.8]}
25. Rxe2 {[%clk 0:03:05.4]} 25... Rb1+ {[%clk 0:03:47.2]} 26. Re1 {[%clk
0:02:46.3]} 26... Rxe1# {[%clk 0:03:46.7]} 0-1

[Event "Live Chess"]
[Site "Chess.com"]
[Date "2024.06.01"]
[Round "-"]
[White "gunslinger222"]
[Black "Eva3337"]
[Result "1-0"]
[WhiteElo "2247"]
[BlackElo "1156"]
[TimeControl "300"]
[EndTime "12:39:57 PDT"]
[Termination "gunslinger222 won by resignation"]

1. d4 {[%clk 0:04:58.3]} 1... Nc6 {[%clk 0:04:57.8]} 2. c4 {[%clk 0:04:57.9]}
2... e6 {[%clk 0:04:54.4]} 3. d5 {[%clk 0:04:56.1]} 3... exd5 {[%clk 0:04:52.6]}
4. cxd5 {[%clk 0:04:56]} 4... Nce7 {[%clk 0:04:51]} 5. Nc3 {[%clk 0:04:53.4]}
5... d6 {[%clk 0:04:49.2]} 6. e4 {[%clk 0:04:52.3]} 6... c6 {[%clk 0:04:47.9]}
7. Be3 {[%clk 0:04:48]} 7... f5 {[%clk 0:04:43.9]} 8. f3 {[%clk 0:04:36]} 8...
fxe4 {[%clk 0:04:38.1]} 9. fxe4 {[%clk 0:04:35.2]} 9... Ng6 {[%clk 0:04:36.5]}
10. Nf3 {[%clk 0:04:32.1]} 10... Bg4 {[%clk 0:04:22.2]} 11. Be2 {[%clk
0:04:29.4]} 11... Ne5 {[%clk 0:04:15.9]} 12. Nxe5 {[%clk 0:04:25.7]} 12... Bxe2
{[%clk 0:04:13.7]} 13. Qxe2 {[%clk 0:04:25.6]} 13... dxe5 {[%clk 0:04:12.7]} 14.
Qh5+ {[%clk 0:04:25.1]} 14... g6 {[%clk 0:04:09.3]} 15. Qxe5+ {[%clk 0:04:24.6]}
15... Qe7 {[%clk 0:03:33.5]} 16. Qxh8 {[%clk 0:04:23.2]} 16... cxd5 {[%clk
0:03:32.1]} 17. Nxd5 {[%clk 0:04:17.5]} 17... Qxe4 {[%clk 0:03:29.1]} 18. Qxg8
{[%clk 0:04:14.1]} 18... O-O-O {[%clk 0:03:23.8]} 19. O-O {[%clk 0:03:56.9]}
19... Bc5 {[%clk 0:03:13.3]} 20. Qxd8+ {[%clk 0:03:46.8]} 20... Kxd8 {[%clk
0:03:10.4]} 21. Bxc5 {[%clk 0:03:45.4]} 21... b6 {[%clk 0:02:50.2]} 22. Rf8+
{[%clk 0:03:43.6]} 22... Kd7 {[%clk 0:02:48]} 23. Nf6+ {[%clk 0:03:43.2]} 1-0

[Event "Live Chess"]
[Site "Chess.com"]
[Date "2024.06.01"]
[Round "-"]
[White "chessfiction"]
[Black "Queensandpawns"]
[Result "0-1"]
[WhiteElo "2402"]
[BlackElo "2385"]
[TimeControl "300"]
[EndTime "12:40:04 PDT"]
[Termination "Queensandpawns won by resignation"]

1. e4 {[%clk 0:04:51.3]} 1... e5 {[%clk 0:04:56.6]} 2. Nf3 {[%clk 0:04:49.9]}
2... Nf6 {[%clk 0:04:56.5]} 3. d4 {[%clk 0:04:39.7]} 3... Nc6 {[%clk 0:04:56.4]}
4. dxe5 {[%clk 0:04:29.5]} 4... Nxe4 {[%clk 0:04:55]} 5. Bc4 {[%clk 0:04:28.8]}
5... Nc5 {[%clk 0:04:52.1]} 6. Nc3 {[%clk 0:03:52.5]} 6... Ne6 {[%clk
0:04:48.6]} 7. Be3 {[%clk 0:03:47.3]} 7... a6 {[%clk 0:04:44]} 8. Qd2 {[%clk
0:03:43.9]} 8... b5 {[%clk 0:04:42.7]} 9. Bd3 {[%clk 0:03:20.3]} 9... Bc5 {[%clk
0:04:37.6]} 10. O-O-O {[%clk 0:03:15.4]} 10... Bxe3 {[%clk 0:04:33.9]} 11. Qxe3
{[%clk 0:03:13.8]} 11... O-O {[%clk 0:04:33.8]} 12. Nd5 {[%clk 0:02:45]} 12...
d6 {[%clk 0:04:18.6]} 13. Nf6+ {[%clk 0:02:12.7]} 13... gxf6 {[%clk 0:04:16.2]}
14. Qh6 {[%clk 0:01:57.1]} 14... f5 {[%clk 0:04:15.2]} 15. Bxf5 {[%clk 0:01:53]}
15... Ng5 {[%clk 0:04:14.7]} 16. Bxc8 {[%clk 0:01:16.8]} 16... Qxc8 {[%clk
0:04:14.6]} 17. Qxg5+ {[%clk 0:01:01.8]} 17... Kh8 {[%clk 0:04:13.8]} 18. Qf6+
{[%clk 0:00:59.5]} 18... Kg8 {[%clk 0:04:12.2]} 19. Ng5 {[%clk 0:00:42.3]} 19...
Nxe5 {[%clk 0:04:02.6]} 20. Nxh7 {[%clk 0:00:25.9]} 20... Kxh7 {[%clk
0:03:37.2]} 21. Rd4 {[%clk 0:00:24.5]} 21... Ng6 {[%clk 0:03:35.7]} 22. Rd3
{[%clk 0:00:22.8]} 22... Qe6 {[%clk 0:03:32.4]} 23. Rh3+ {[%clk 0:00:21.8]}
23... Kg8 {[%clk 0:03:31.8]} 24. Qc3 {[%clk 0:00:18.3]} 24... Qe5 {[%clk
0:03:30.1]} 25. Qg3 {[%clk 0:00:16.1]} 25... Qxg3 {[%clk 0:03:29]} 26. Rxg3
{[%clk 0:00:16]} 26... Kg7 {[%clk 0:03:27.8]} 27. h4 {[%clk 0:00:15.9]} 27...
Rh8 {[%clk 0:03:25.8]} 28. h5 {[%clk 0:00:15.2]} 28... Kf6 {[%clk 0:03:25.7]}
29. Rgh3 {[%clk 0:00:10.3]} 29... Nf4 {[%clk 0:03:24.5]} 30. Rf3 {[%clk
0:00:10.2]} 30... Ke5 {[%clk 0:03:23.5]} 31. Re1+ {[%clk 0:00:08.8]} 31... Kd5
{[%clk 0:03:22.6]} 32. g3 {[%clk 0:00:08.7]} 32... Kc6 {[%clk 0:03:22.5]} 33.
Rxf4 {[%clk 0:00:08.1]} 33... Rxh5 {[%clk 0:03:22]} 34. Re3 {[%clk 0:00:07.2]}
34... Rhh8 {[%clk 0:03:21.4]} 35. Kd2 {[%clk 0:00:07.1]} 35... Kb6 {[%clk
0:03:20.7]} 36. Rc3 {[%clk 0:00:07]} 36... c6 {[%clk 0:03:19.9]} 37. Rxf7 {[%clk
0:00:06.3]} 37... Rhc8 {[%clk 0:03:18.8]} 38. Rf6 {[%clk 0:00:05.8]} 38... d5
{[%clk 0:03:17.7]} 39. Rd6 {[%clk 0:00:05.4]} 39... b4 {[%clk 0:03:17.1]} 40.
Rb3 {[%clk 0:00:04.5]} 40... a5 {[%clk 0:03:17]} 41. c3 {[%clk 0:00:03.9]} 41...
Kc5 {[%clk 0:03:16.9]} 42. cxb4+ {[%clk 0:00:03.4]} 42... Kxd6 {[%clk
0:03:16.2]} 0-1

[Event "Live Chess"]
[Site "Chess.com"]
[Date "2024.06.01"]
[Round "-"]
[White "blunderabit"]
[Black "TigerTank70"]
[Result "0-1"]
[WhiteElo "1818"]
[BlackElo "2193"]
[TimeControl "300"]
[EndTime "12:40:18 PDT"]
[Termination "TigerTank70 won on time"]

1. e4 {[%clk 0:04:48.7]} 1... e5 {[%clk 0:04:58]} 2. Nc3 {[%clk 0:04:45.3]} 2...
Nc6 {[%clk 0:04:56.9]} 3. Bc4 {[%clk 0:04:43]} 3... d6 {[%clk 0:04:55.1]} 4. d3
{[%clk 0:04:37.5]} 4... Be7 {[%clk 0:04:53.9]} 5. f4 {[%clk 0:04:35]} 5... exf4
{[%clk 0:04:51.9]} 6. Bxf4 {[%clk 0:04:31.9]} 6... Bh4+ {[%clk 0:04:48.8]} 7. g3
{[%clk 0:04:29.6]} 7... Bf6 {[%clk 0:04:44.6]} 8. Nf3 {[%clk 0:04:27.4]} 8...
Nge7 {[%clk 0:04:41.8]} 9. O-O {[%clk 0:04:25.5]} 9... O-O {[%clk 0:04:40.9]}
10. d4 {[%clk 0:04:13.1]} 10... Ng6 {[%clk 0:04:38.8]} 11. Be3 {[%clk 0:04:03]}
11... Bg4 {[%clk 0:04:36.6]} 12. Nd5 {[%clk 0:03:48.2]} 12... Re8 {[%clk
0:04:23.2]} 13. Qd3 {[%clk 0:03:14.9]} 13... Bh3 {[%clk 0:03:52.3]} 14. Nxf6+
{[%clk 0:02:49.2]} 14... gxf6 {[%clk 0:03:44.1]} 15. Rf2 {[%clk 0:02:45.6]}
15... Qe7 {[%clk 0:03:33.3]} 16. Nd2 {[%clk 0:02:40.3]} 16... Nb4 {[%clk
0:02:56.9]} 17. Qb3 {[%clk 0:02:33.2]} 17... d5 {[%clk 0:02:55.8]} 18. Bxd5
{[%clk 0:02:19.6]} 18... Nxd5 {[%clk 0:02:54.6]} 19. Qxd5 {[%clk 0:02:17.8]}
19... c6 {[%clk 0:02:48.7]} 20. Qh5 {[%clk 0:02:10.9]} 20... Qxe4 {[%clk
0:02:47]} 21. Qxh3 {[%clk 0:02:01.6]} 21... Qxe3 {[%clk 0:02:45.1]} 22. Qf5
{[%clk 0:01:58.3]} 22... Qxd4 {[%clk 0:02:36.8]} 23. c3 {[%clk 0:01:45.5]} 23...
Qe5 {[%clk 0:02:28.2]} 24. Raf1 {[%clk 0:01:37.3]} 24... Qxf5 {[%clk 0:02:21.3]}
25. Rxf5 {[%clk 0:01:36.7]} 25... Re2 {[%clk 0:02:20.4]} 26. R1f2 {[%clk
0:01:35.4]} 26... Rxf2 {[%clk 0:01:48.4]} 27. Kxf2 {[%clk 0:01:32.2]} 27... Ne5
{[%clk 0:01:42.6]} 28. Ne4 {[%clk 0:01:22.6]} 28... Nd3+ {[%clk 0:01:30.6]} 29.
Kg2 {[%clk 0:01:13.7]} 29... Nxb2 {[%clk 0:01:30.5]} 30. Nxf6+ {[%clk
0:01:09.4]} 30... Kg7 {[%clk 0:01:29.9]} 31. Nd7 {[%clk 0:01:02.5]} 31... h6
{[%clk 0:01:22.4]} 32. Ne5 {[%clk 0:00:47]} 32... Rf8 {[%clk 0:01:14.6]} 33. Nd7
{[%clk 0:00:40]} 33... Rd8 {[%clk 0:01:13.4]} 34. Ne5 {[%clk 0:00:38.2]} 34...
f6 {[%clk 0:01:11.7]} 35. Ng4 {[%clk 0:00:27.5]} 35... Rd2+ {[%clk 0:01:09.1]}
36. Kh3 {[%clk 0:00:26]} 36... h5 {[%clk 0:01:04.2]} 37. Nxf6 {[%clk 0:00:23.8]}
37... Kg6 {[%clk 0:01:02.5]} 38. Rf3 {[%clk 0:00:18.5]} 38... Nd3 {[%clk
0:00:55.4]} 39. Ne4 {[%clk 0:00:13.4]} 39... Re2 {[%clk 0:00:40]} 40. Nd6 {[%clk
0:00:00.6]} 40... Ne5 {[%clk 0:00:26.6]} 0-1

[Event "Live Chess"]
[Site "Chess.com"]
[Date "2024.06.01"]
[Round "-"]
[White "imchessive"]
[Black "WorcesterYork"]
[Result "1-0"]
[WhiteElo "1588"]
[BlackElo "2498"]
[TimeControl "300"]
[EndTime "12:40:31 PDT"]
[Termination "imchessive won by resignation"]

1. d4 {[%clk 0:04:58]} 1... c5 {[%clk 0:04:59.3]} 2. Nf3 {[%clk 0:04:53]} 2...
cxd4 {[%clk 0:04:58.5]} 3. Nxd4 {[%clk 0:04:52.9]} 3... Nc6 {[%clk 0:04:58]} 4.
g3 {[%clk 0:04:51.9]} 4... Nf6 {[%clk 0:04:57.6]} 5. Bg2 {[%clk 0:04:50.6]} 5...
h5 {[%clk 0:04:57.2]} 6. Nf3 {[%clk 0:04:42.4]} 6... d6 {[%clk 0:04:55.4]} 7. c4
{[%clk 0:04:40.8]} 7... g6 {[%clk 0:04:54]} 8. Nc3 {[%clk 0:04:36.4]} 8... Bg7
{[%clk 0:04:53.9]} 9. Bg5 {[%clk 0:04:32.6]} 9... Be6 {[%clk 0:04:51.8]} 10. Nd5
{[%clk 0:04:20.4]} 10... Bxd5 {[%clk 0:04:43.3]} 11. cxd5 {[%clk 0:04:20.3]}
11... Nb8 {[%clk 0:04:41.7]} 12. Rc1 {[%clk 0:04:01.6]} 12... Nbd7 {[%clk
0:04:40.8]} 13. Bh3 {[%clk 0:03:52.1]} 13... O-O {[%clk 0:04:34.9]} 14. Qa4
{[%clk 0:03:42.2]} 14... Nc5 {[%clk 0:04:33.8]} 15. Qc4 {[%clk 0:03:29.9]} 15...
Nce4 {[%clk 0:04:26.2]} 16. O-O {[%clk 0:03:04.2]} 16... Nxg5 {[%clk 0:04:24.2]}
17. Nxg5 {[%clk 0:03:04.1]} 17... Qb6 {[%clk 0:04:21.7]} 18. b3 {[%clk
0:02:58.9]} 18... a5 {[%clk 0:04:17.9]} 19. a4 {[%clk 0:02:53.7]} 19... Bh6
{[%clk 0:04:11.4]} 20. Qf4 {[%clk 0:02:12.6]} 20... Nxd5 {[%clk 0:04:04.8]} 21.
Qd2 {[%clk 0:02:05.2]} 21... Nf6 {[%clk 0:03:55.1]} 22. Rc3 {[%clk 0:01:46.9]}
22... Ne4 {[%clk 0:03:50.5]} 23. Qe3 {[%clk 0:01:40.9]} 23... Nxg5 {[%clk
0:03:48.5]} 24. Qxb6 {[%clk 0:01:38.2]} 24... Nxh3+ {[%clk 0:03:47.2]} 25. Kg2
{[%clk 0:01:37.1]} 25... Ng5 {[%clk 0:03:45.3]} 26. Rc7 {[%clk 0:01:30.8]} 26...
e6 {[%clk 0:03:40.5]} 27. Qxb7 {[%clk 0:01:18.4]} 27... Rab8 {[%clk 0:03:36.5]}
28. Qa7 {[%clk 0:01:17.3]} 28... Rxb3 {[%clk 0:03:35]} 29. Qxa5 {[%clk
0:01:15.4]} 29... Bg7 {[%clk 0:03:29]} 30. Qxg5 {[%clk 0:01:10.3]} 30... Rfb8
{[%clk 0:03:26.3]} 31. Qe7 {[%clk 0:01:02.4]} 31... Rf8 {[%clk 0:03:24.6]} 32.
Rfc1 {[%clk 0:00:58.9]} 32... Rb2 {[%clk 0:03:21.6]} 33. Rc8 {[%clk 0:00:56.9]}
33... Rxe2 {[%clk 0:03:20.7]} 34. Rxf8+ {[%clk 0:00:51.8]} 34... Bxf8 {[%clk
0:03:20.6]} 35. Qe8 {[%clk 0:00:49]} 35... d5 {[%clk 0:03:10.9]} 36. Rc8 {[%clk
0:00:47.5]} 1-0

[Event "Live Chess"]
[Site "Chess.com"]
[Date "2024.06.01"]
[Round "-"]
[White "PhilMaybury64"]
[Black "GwaryTek"]
[Result "0-1"]
[WhiteElo "1412"]
[BlackElo "2002"]
[TimeControl "300"]
[EndTime "12:40:32 PDT"]
[Termination "GwaryTek won by resignation"]

1. e4 {[%clk 0:04:53.2]} 1... Nf6 {[%clk 0:04:59.9]} 2. e5 {[%clk 0:04:45]} 2...
Nd5 {[%clk 0:04:57.9]} 3. c4 {[%clk 0:04:41.7]} 3... Nb6 {[%clk 0:04:52.3]} 4.
d4 {[%clk 0:04:40.7]} 4... d6 {[%clk 0:04:50.9]} 5. Nc3 {[%clk 0:04:34.4]} 5...
dxe5 {[%clk 0:04:47.7]} 6. dxe5 {[%clk 0:04:33]} 6... Qxd1+ {[%clk 0:04:45.4]}
7. Nxd1 {[%clk 0:04:31]} 7... Nc6 {[%clk 0:04:43]} 8. f4 {[%clk 0:04:27]} 8...
Bf5 {[%clk 0:04:29.8]} 9. Ne3 {[%clk 0:04:19.7]} 9... Be4 {[%clk 0:04:26.4]} 10.
Nf3 {[%clk 0:04:16]} 10... O-O-O {[%clk 0:04:21.4]} 11. Be2 {[%clk 0:04:13.4]}
11... h6 {[%clk 0:04:03.4]} 12. O-O {[%clk 0:04:10.3]} 12... e6 {[%clk 0:03:58]}
13. Nd2 {[%clk 0:04:04]} 13... Bg6 {[%clk 0:03:47.5]} 14. b3 {[%clk 0:03:42.6]}
14... Nd4 {[%clk 0:03:42.8]} 15. Bf3 {[%clk 0:03:37.2]} 15... Bb4 {[%clk
0:03:33.2]} 16. Ne4 {[%clk 0:03:28]} 16... Rhf8 {[%clk 0:02:49.1]} 17. a3 {[%clk
0:03:20.5]} 17... Be7 {[%clk 0:02:24.2]} 18. c5 {[%clk 0:03:10.5]} 18... Nd5
{[%clk 0:02:09.1]} 19. Nxd5 {[%clk 0:03:07]} 19... exd5 {[%clk 0:02:06.2]} 20.
Nc3 {[%clk 0:03:00.2]} 20... Nxb3 {[%clk 0:01:59.6]} 21. Ra2 {[%clk 0:02:57.3]}
21... Bxc5+ {[%clk 0:01:50.2]} 22. Kh1 {[%clk 0:02:55]} 22... Bd3 {[%clk
0:01:17.7]} 23. Rd1 {[%clk 0:02:42.3]} 23... Bc4 {[%clk 0:01:17]} 24. Na4 {[%clk
0:02:24.2]} 24... Nxc1 {[%clk 0:01:15.5]} 25. Rxc1 {[%clk 0:02:17.8]} 25... Be3
{[%clk 0:01:13.7]} 26. Rc3 {[%clk 0:02:08.9]} 26... Bxf4 {[%clk 0:01:12.1]} 27.
Rac2 {[%clk 0:02:03.6]} 27... Bxe5 {[%clk 0:01:09]} 28. Re3 {[%clk 0:01:52.3]}
28... Bd6 {[%clk 0:01:07.3]} 29. Nc3 {[%clk 0:01:42.3]} 29... Rfe8 {[%clk
0:00:57.9]} 30. Rxe8 {[%clk 0:01:29]} 30... Rxe8 {[%clk 0:00:57.8]} 31. g3
{[%clk 0:01:27.2]} 31... c6 {[%clk 0:00:56.5]} 32. Rf2 {[%clk 0:01:18]} 32...
Bxa3 {[%clk 0:00:51.8]} 33. Bg4+ {[%clk 0:01:15.1]} 33... Kb8 {[%clk 0:00:46.3]}
34. Rxf7 {[%clk 0:01:13.7]} 34... d4 {[%clk 0:00:45.8]} 35. Na4 {[%clk
0:01:10.2]} 35... Bxf7 {[%clk 0:00:44.3]} 0-1

[Event "Live Chess"]
[Site "Chess.com"]
[Date "2024.06.01"]
[Round "-"]
[White "NeilDruggan73"]
[Black "MagnersCarlsberg2870"]
[Result "1-0"]
[WhiteElo "1755"]
[BlackElo "1834"]
[TimeControl "300"]
[EndTime "12:40:34 PDT"]
[Termination "NeilDruggan73 won by checkmate"]

1. d4 {[%clk 0:04:54.6]} 1... Nf6 {[%clk 0:04:58.6]} 2. Bg5 {[%clk 0:04:51.1]}
2... Ne4 {[%clk 0:04:55.4]} 3. h4 {[%clk 0:04:48.5]} 3... Nxg5 {[%clk
0:04:53.8]} 4. hxg5 {[%clk 0:04:46.5]} 4... c6 {[%clk 0:04:52.5]} 5. g6 {[%clk
0:04:40.8]} 5... fxg6 {[%clk 0:04:50.7]} 6. e3 {[%clk 0:04:39.7]} 6... Qb6
{[%clk 0:04:49.6]} 7. Bd3 {[%clk 0:04:37.8]} 7... Qxb2 {[%clk 0:04:47.3]} 8. Nd2
{[%clk 0:04:34.5]} 8... h6 {[%clk 0:04:32.9]} 9. Bxg6+ {[%clk 0:04:32.2]} 9...
Kd8 {[%clk 0:04:31.9]} 10. Ngf3 {[%clk 0:04:29.1]} 10... Na6 {[%clk 0:04:28.2]}
11. Ne5 {[%clk 0:04:27.6]} 11... Nb4 {[%clk 0:04:25.3]} 12. O-O {[%clk
0:04:24.7]} 12... Rg8 {[%clk 0:04:19.8]} 13. Qf3 {[%clk 0:04:18.7]} 13... e6
{[%clk 0:03:58.2]} 14. Rfb1 {[%clk 0:03:47.4]} 14... Qa3 {[%clk 0:03:53.5]} 15.
Rb3 {[%clk 0:03:43.2]} 15... Qa6 {[%clk 0:03:47.3]} 16. Bd3 {[%clk 0:03:39.1]}
16... b5 {[%clk 0:03:43]} 17. Nf7+ {[%clk 0:03:31.8]} 17... Kc7 {[%clk
0:03:35.6]} 18. Qf4+ {[%clk 0:03:30.1]} 18... d6 {[%clk 0:03:28]} 19. Rxb4
{[%clk 0:03:28.8]} 19... g5 {[%clk 0:03:21.2]} 20. Qf3 {[%clk 0:03:20.8]} 20...
Bb7 {[%clk 0:03:18.3]} 21. Qf6 {[%clk 0:03:11.4]} 21... Re8 {[%clk 0:03:05.7]}
22. a4 {[%clk 0:03:09.6]} 22... Be7 {[%clk 0:03:04.2]} 23. Qxe6 {[%clk
0:03:04.5]} 23... Bc8 {[%clk 0:02:56.1]} 24. Qb3 {[%clk 0:02:59.7]} 24... Ref8
{[%clk 0:02:46.3]} 25. Nxh6 {[%clk 0:02:53.2]} 25... Rh8 {[%clk 0:02:40.2]} 26.
Nf7 {[%clk 0:02:49.9]} 26... d5 {[%clk 0:02:37.8]} 27. Nxh8 {[%clk 0:02:42.8]}
27... Rxh8 {[%clk 0:02:35]} 28. Nf3 {[%clk 0:02:38.2]} 28... g4 {[%clk
0:02:22.4]} 29. Ne5 {[%clk 0:02:36.3]} 29... Qa5 {[%clk 0:02:07.6]} 30. Rxb5
{[%clk 0:02:31.6]} 30... cxb5 {[%clk 0:02:05.6]} 31. Qxd5 {[%clk 0:02:29.8]}
31... Qc3 {[%clk 0:01:49.3]} 32. Rb1 {[%clk 0:02:24.6]} 32... g3 {[%clk
0:01:43.8]} 33. f3 {[%clk 0:01:53.4]} 33... Qd2 {[%clk 0:01:42.1]} 34. Qc6+
{[%clk 0:01:45.7]} 34... Kb8 {[%clk 0:01:37.7]} 35. Rxb5+ {[%clk 0:01:42.4]}
35... Bb7 {[%clk 0:01:34.1]} 36. Qxb7# {[%clk 0:01:41.1]} 1-0

[Event "Live Chess"]
[Site "Chess.com"]
[Date "2024.06.01"]
[Round "-"]
[White "Zhevzh1k7"]
[Black "Nazar-Makarchuk"]
[Result "0-1"]
[WhiteElo "1108"]
[BlackElo "1511"]
[TimeControl "300"]
[EndTime "12:40:34 PDT"]
[Termination "Nazar-Makarchuk won by resignation"]

1. e4 {[%clk 0:04:56]} 1... d5 {[%clk 0:04:59.5]} 2. exd5 {[%clk 0:04:54.6]}
2... Qxd5 {[%clk 0:04:59]} 3. Nc3 {[%clk 0:04:53.9]} 3... Qd8 {[%clk 0:04:58.5]}
4. Nf3 {[%clk 0:04:52.6]} 4... Nf6 {[%clk 0:04:58.1]} 5. Bc4 {[%clk 0:04:49.6]}
5... Nc6 {[%clk 0:04:57.3]} 6. d3 {[%clk 0:04:47.3]} 6... e5 {[%clk 0:04:56.8]}
7. Bg5 {[%clk 0:04:44.7]} 7... Be7 {[%clk 0:04:55.6]} 8. O-O {[%clk 0:04:41]}
8... O-O {[%clk 0:04:54.8]} 9. Re1 {[%clk 0:04:39.6]} 9... Bd6 {[%clk
0:04:52.1]} 10. Ne4 {[%clk 0:04:30.1]} 10... Be7 {[%clk 0:04:49.6]} 11. Nxf6+
{[%clk 0:04:25.2]} 11... Bxf6 {[%clk 0:04:48.1]} 12. Bxf6 {[%clk 0:04:19.8]}
12... Qxf6 {[%clk 0:04:47.7]} 13. Qe2 {[%clk 0:04:11.1]} 13... Be6 {[%clk
0:04:46.5]} 14. Bxe6 {[%clk 0:04:07.5]} 14... Qxe6 {[%clk 0:04:45.7]} 15. Nxe5
{[%clk 0:04:01.6]} 15... Nxe5 {[%clk 0:04:44.3]} 16. Qxe5 {[%clk 0:04:00.3]}
16... Qxe5 {[%clk 0:04:44]} 17. Rxe5 {[%clk 0:03:59]} 17... Rfe8 {[%clk
0:04:43.3]} 18. Rae1 {[%clk 0:03:56.2]} 18... Rxe5 {[%clk 0:04:37.3]} 19. Rxe5
{[%clk 0:03:55.5]} 19... Kf8 {[%clk 0:04:36.9]} 20. Rd5 {[%clk 0:03:53.2]} 20...
Ke7 {[%clk 0:04:35.7]} 21. c4 {[%clk 0:03:51]} 21... c6 {[%clk 0:04:35.2]} 22.
Rd4 {[%clk 0:03:47.7]} 22... Ke6 {[%clk 0:04:33.3]} 23. f4 {[%clk 0:03:46.3]}
23... c5 {[%clk 0:04:32.2]} 24. Re4+ {[%clk 0:03:44.5]} 24... Kf6 {[%clk
0:04:31]} 25. g4 {[%clk 0:03:42.1]} 25... g6 {[%clk 0:04:29]} 26. Kf2 {[%clk
0:03:40.5]} 26... Rd8 {[%clk 0:04:28.5]} 27. Ke3 {[%clk 0:03:38.7]} 27... Rd6
{[%clk 0:04:22.9]} 28. g5+ {[%clk 0:03:35.1]} 28... Kg7 {[%clk 0:04:21.1]} 29.
Re7 {[%clk 0:03:31.4]} 29... Rb6 {[%clk 0:04:19.8]} 30. b3 {[%clk 0:03:29.3]}
30... a5 {[%clk 0:04:17.9]} 31. d4 {[%clk 0:03:21.6]} 31... cxd4+ {[%clk
0:04:08.1]} 32. Kxd4 {[%clk 0:03:20.7]} 32... Rb4 {[%clk 0:04:03.1]} 33. Kc5
{[%clk 0:03:11.6]} 33... Kf8 {[%clk 0:04:01]} 34. Rd7 {[%clk 0:02:55.2]} 34...
Ke8 {[%clk 0:03:58.4]} 35. Rc7 {[%clk 0:02:53.6]} 35... b6+ {[%clk 0:03:55.7]}
36. Kc6 {[%clk 0:02:50.3]} 36... a4 {[%clk 0:03:38.8]} 37. Rc8+ {[%clk
0:02:30.9]} 37... Ke7 {[%clk 0:03:35.5]} 38. Rc7+ {[%clk 0:02:29.1]} 38... Ke6
{[%clk 0:03:34.2]} 39. c5 {[%clk 0:02:19.4]} 39... axb3 {[%clk 0:03:31.1]} 40.
cxb6 {[%clk 0:02:15.9]} 40... b2 {[%clk 0:03:28.9]} 41. Rd7 {[%clk 0:01:47.7]}
41... b1=Q {[%clk 0:03:17]} 42. Rd6+ {[%clk 0:01:46.2]} 42... Ke7 {[%clk
0:03:13.7]} 43. Rd7+ {[%clk 0:01:45.4]} 43... Ke8 {[%clk 0:03:12.6]} 44. Rd5
{[%clk 0:01:34.5]} 44... Rxb6+ {[%clk 0:03:11.2]} 45. Kc5 {[%clk 0:01:33.1]}
45... Qb5+ {[%clk 0:03:10.3]} 0-1

[Event "Live Chess"]
[Site "Chess.com"]
[Date "2024.06.01"]
[Round "-"]
[White "JanMur7"]
[Black "simonJacobsLondon"]
[Result "1-0"]
[WhiteElo "2313"]
[BlackElo "1498"]
[TimeControl "300"]
[EndTime "12:40:44 PDT"]
[Termination "JanMur7 won by resignation"]

1. c4 {[%clk 0:04:57.6]} 1... e5 {[%clk 0:04:53.7]} 2. Nc3 {[%clk 0:04:56.6]}
2... Nf6 {[%clk 0:04:51.6]} 3. Nf3 {[%clk 0:04:53.4]} 3... d6 {[%clk 0:04:49]}
4. d4 {[%clk 0:04:51.6]} 4... Nc6 {[%clk 0:04:45.8]} 5. dxe5 {[%clk 0:04:49]}
5... Nxe5 {[%clk 0:04:42.9]} 6. Nxe5 {[%clk 0:04:47.3]} 6... dxe5 {[%clk
0:04:42.2]} 7. Qxd8+ {[%clk 0:04:46.6]} 7... Kxd8 {[%clk 0:04:41.5]} 8. g3
{[%clk 0:04:45.3]} 8... Bb4 {[%clk 0:04:36.9]} 9. Bg2 {[%clk 0:04:43.7]} 9... c6
{[%clk 0:04:32.9]} 10. O-O {[%clk 0:04:40.3]} 10... Bxc3 {[%clk 0:04:31.3]} 11.
bxc3 {[%clk 0:04:38.9]} 11... Ke7 {[%clk 0:04:29.8]} 12. Ba3+ {[%clk 0:04:37.6]}
12... Ke6 {[%clk 0:04:24.2]} 13. Bh3+ {[%clk 0:04:36.1]} 13... Ng4 {[%clk
0:04:08.1]} 14. Bxg4+ {[%clk 0:04:35.6]} 14... f5 {[%clk 0:04:04.6]} 15. Bh3
{[%clk 0:04:32.4]} 15... Rd8 {[%clk 0:04:01.4]} 16. Rfd1 {[%clk 0:04:28.6]} 1-0